Cogmind - Beta 14 @@@ ROGUE MODE // 2024.11.30 @ 09:45:25 Player: Skullbearer Result: Destroyed by D-53 Grenadier with Mini Grenade Launcher Performance ------------- Evolutions (0) 0 Regions Visited (2) 400 Robots Destroyed (7) 35 Value Destroyed (264) 264 Prototype IDs (0) 0 Alien Tech Used (0) 0 Bonus (0) 0 TOTAL SCORE: 699 Bonus ------- None Cogmind --------- Core Integrity 0/250 Matter 300/300 Energy 100/100 System Corruption 0% Temperature Cool (0) Movement Rolling (175) Ox5 Location -10/Mines Parts ------- > --- POWER (1) -------- (None) > --- PROPULSION (2) --- Compact Wheel > --- UTILITY (2) ------ Huge Storage Unit Seismic Detector > --- WEAPON (2) ------- Light Assault Rifle > --- INVENTORY (25) --- Ion Engine Light Ion Engine Aluminum Leg Aluminum Leg Aluminum Leg Aluminum Leg Aluminum Leg Hover Unit Heat Sink Improved Heat Sink Large Storage Unit High-capacity Storage Unit Small Matter Pod (50) High-capacity Matter Pod (29) Weapon Shielding Weapon Shielding Small Laser Small Laser Light Assault Rifle Light Assault Rifle Light Assault Rifle Light Assault Rifle Welding Torch Peak State ------------ > --- POWER ------------ Light Ion Engine > --- PROPULSION ------- Wheel Compact Wheel > --- UTILITY ---------- Huge Storage Unit Small Matter Pod > --- WEAPON ----------- Assault Rifle Light Assault Rifle > --- INVENTORY -------- Ion Engine Aluminum Leg Aluminum Leg Aluminum Leg Aluminum Leg Aluminum Leg Hover Unit Heat Sink Large Storage Unit High-capacity Storage Unit Seismic Detector Weapon Shielding Weapon Shielding Small Laser Small Laser Light Assault Rifle Light Assault Rifle Light Assault Rifle Light Assault Rifle Welding Torch [Rating: 9] Favorites ----------- Power Light Ion Engine Engine Light Ion Engine Propulsion Wheel Leg Aluminum Leg Wheel Wheel Utility Small Matter Pod Device Seismic Detector Storage Small Matter Pod Weapon Light Assault Rifle Ballistic Gun Light Assault Rifle Build | -11 -10 -10 ------- Run | Yrd Mat Min Slots Evolved . | . . . Power . | . . . Propulsion . | . . . Utility . | . . . Weapon . | . . . Parts Attached 23 | 6 10 7 Power 3 | 1 1 1 Engine 3 | 1 1 1 Core . | . . . Reactor . | . . . Propulsion 10 | 2 4 4 Treads . | . . . Leg 4 | . 2 2 Wheel 6 | 2 2 2 Hover . | . . . Flight . | . . . Utility 6 | 1 4 1 Device 1 | . . 1 Storage 5 | 1 4 . Processor . | . . . Hackware . | . . . Protection . | . . . Artifact . | . . . Weapon 4 | 2 1 1 Energy Gun . | . . . Energy Cannon . | . . . Ballistic Gun 4 | 2 1 1 Ballistic Cannon . | . . . Launcher . | . . . Special Weapon . | . . . Impact Weapon . | . . . Slashing Weapon . | . . . Piercing Weapon . | . . . Special Melee Weapon . | . . . Unidentified Prototypes . | . . . Parts Lost 4 | . 1 3 Power 2 | . 1 1 Propulsion 1 | . . 1 Utility . | . . . Weapon 1 | . . 1 Highest Loss Streak 3 | . 1 3 To Critical Strikes . | . . . Average Slot Usage (%) 98 | . 98 99 Engine 13 | . 13 13 Leg 2 | . 2 2 Wheel 25 | . 25 25 Device 2 | . . 5 Storage 25 | . 26 22 Ballistic Gun 27 | . 28 27 Peak Build Rating 9 | 6 9 9 Average Rating 8 | 4 8 8 On Entrance 5 | . 6 9 Naked Turns . | . . . Heaviest Build 89 | 11 87 89 Greatest Support 26 | 26 26 26 Greatest Overweight (x) 5 | . 3 5 Average Overweight (x) 1 | . 1 3 Largest Inventory Capacity 25 | 8 25 25 Average Capacity 20 | 7 20 25 Most Carried 23 | 4 21 23 Average Carried 17 | 1 16 22 Final Capacity 25 | 8 25 25 Final Carried 23 | 4 21 23 Class Distribution -------------------- 100% | Mutant Dominant Class ---------------- Mutant | -10/Materials Mutant | -10/Mines Resources | -11 -10 -10 ----------- Run | Yrd Mat Min Matter Collected 617 | 260 115 242 Remotely . | . . . Salvage Created 307 | . 115 192 Parts 20 | . 10 10 Haulers Intercepted . | . . . Recyclers Shooed . | . . . Parts Field Recycled . | . . . Retrieved Matter . | . . . Parts Self-Destructed . | . . . Prevented . | . . . Kills | -11 -10 -10 ------- Run | Yrd Mat Min Combat Hostiles Destroyed 7 | . 3 4 Guns 7 | . 3 4 Classes Destroyed 1 | . 1 . Grunt 7 | . 3 4 Best Kill Streak 3 | . 3 2 Combat Bots Only 3 | . 3 2 Max Kills in Single Turn 1 | . 1 1 Gunslinging . | . . . Exploded . | . . . Melee . | . . . Uniques/NPCs Destroyed . | . . . Combat | -11 -10 -10 -------- Run | Yrd Mat Min Hostile Shots Fired 70 | . 33 37 Missed 13 | . 7 6 Damage Taken 843 | . 285 558 Core 261 | . 40 221 Absorbed by Shields . | . . . Core Remaining (%) 100 | 100 . . Volleys Fired 32 | . 14 18 Largest 2 | . 2 2 Hottest 40 | . 40 40 Shots Fired 64 | . 28 36 Gun 64 | . 28 36 Cannon . | . . . Launcher . | . . . Special . | . . . Kinetic 64 | . 28 36 Thermal . | . . . Explosive . | . . . Electromagnetic . | . . . Robot Hit Streak 4 | . 3 4 Robot Miss Streak 4 | . 4 2 Penetration Max . | . . . Secondary Targets 2 | . 1 1 Max Gunslinging Chain 1 | . 1 1 Shots Hit Robots 36 | . 15 21 Core Hits 16 | . 6 10 Critical Kills . | . . . Critical Parts Destroyed 1 | . . 1 Critical Strikes 1 | . . 1 Destroy 1 | . . 1 Melee Attacks . | . . . Impact . | . . . Slashing . | . . . Piercing . | . . . Sneak Attacks . | . . . Combat Hostiles . | . . . Follow-up Attacks . | . . . Damage Inflicted 412 | . 180 232 Guns 412 | . 180 232 Cannons . | . . . Explosions . | . . . Melee . | . . . Ramming . | . . . Kinetic 412 | . 180 232 Thermal . | . . . Explosive . | . . . Electromagnetic . | . . . Impact . | . . . Slashing . | . . . Piercing . | . . . Highest Corruption . | . . . Average Corruption . | . . . Corruption Purged . | . . . Corruption Blocked . | . . . Overload Shots . | . . . Overflow Damage . | . . . Projectiles . | . . . Explosions . | . . . Melee . | . . . Knockbacks . | . . . Impact . | . . . Kinetic . | . . . Secondary . | . . . Self-Inflicted Damage . | . . . Shots . | . . . Rammed . | . . . Targets Rammed . | . . . Kicked . | . . . Crushed . | . . . Highest Temperature 28 | . 28 27 Average Temperature 11 | . 11 11 Received Heat Transfer 396 | . 156 240 Siege Activations . | . . . Robots Corrupted . | . . . Combat Hostiles . | . . . Parts Fried . | . . . Impact Corruptions . | . . . Robots Melted . | . . . Combat Hostiles . | . . . Parts Melted . | . . . Heat Transferred . | . . . Parts Sabotaged . | . . . Parts Stolen . | . . . Parts Stripped . | . . . Power Chain Reactions . | . . . Alert | -11 -10 -10 ------- Run | Yrd Mat Min Peak Influence 100 | . 90 100 Initial . | . . . Average 56 | . 51 78 Maximum Alert Level . | . . . Low Security (%) 100 | 100 100 100 Level 1 . | . . . Level 2 . | . . . Level 3 . | . . . Level 4 . | . . . Level 5 . | . . . High Security . | . . . Max Security . | . . . Squads Dispatched 2 | . 2 . Investigation 1 | . 1 . Extermination . | . . . Reinforcement 1 | . 1 . Assault . | . . . Garrison . | . . . Intercept . | . . . Searches Triggered . | . . . Construction Impeded . | . . . Haulers Reinforced . | . . . Active Scanning Responses . | . . . Cargo Convoy Interrupts . | . . . Stealth | -11 -10 -10 --------- Run | Yrd Mat Min Distress Signals . | . . . Communications Jammed . | . . . Distress Signals . | . . . Times Spotted 13 | . 7 6 Peak Tracking Total 4 | . 4 2 Tactical Retreats . | . . . Traps | -11 -10 -10 ------- Run | Yrd Mat Min Traps Triggered 1 | . 1 . Indirectly . | . . . Trap Hack Attempts . | . . . Triggered . | . . . Disarmed . | . . . Reprogrammed . | . . . Reused . | . . . Traps Extracted . | . . . Installed . | . . . Triggered . | . . . Machines | -11 -10 -10 ---------- Run | Yrd Mat Min Machines Disabled . | . . . Max in Single Turn . | . . . Machines Repaired . | . . . Machines Dismantled . | . . . Machines Sabotaged . | . . . Overloaded Fab Kills . | . . . Hacking | -11 -10 -10 --------- Run | Yrd Mat Min Machines Accessed 1 | . 1 . Terminals 1 | . 1 . Fabricators . | . . . Repair Stations . | . . . Recycling Units . | . . . Scanalyzers . | . . . Garrison Access . | . . . Total Hacks 2 | . 2 . Successful . | . . . Failed 2 | . 2 . Catastrophic . | . . . Database Lockouts . | . . . Manual . | . . . Terminals 2 | . 2 . Fabricators . | . . . Repair Stations . | . . . Recycling Units . | . . . Scanalyzers . | . . . Garrison Access . | . . . Terminal Hacks . | . . . Fabricator Hacks . | . . . Repair Station Hacks . | . . . Recycling Unit Hacks . | . . . Scanalyzer . | . . . Garrison Access Hacks . | . . . Unauthorized Hacks . | . . . Terminals . | . . . Fabricators . | . . . Repair Stations . | . . . Recycling Units . | . . . Scanalyzers . | . . . Garrison Access . | . . . Data Cores Recovered . | . . . Used . | . . . Hacking Detections 1 | . 1 . Full Trace Events . | . . . Feedback Events . | . . . Feedback Blocked . | . . . Robot Schematics Acquired . | . . . Robots Built . | . . . Authchips . | . . . Time . | . . . Total Robot Build Rating . | . . . Part Schematics Acquired . | . . . Parts Built . | . . . Authchips . | . . . Time . | . . . Total Part Build Rating . | . . . Parts Repaired . | . . . Time . | . . . Parts Recycled . | . . . Recycled Matter . | . . . Retrieved Matter . | . . . Retrieved Components . | . . . Parts Scanalyzed . | . . . Part Schematics Acquired . | . . . Parts Damaged . | . . . Bothacking | -11 -10 -10 ------------ Run | Yrd Mat Min Used RIF Installer . | . . . Robots Hacked . | . . . Non-combat . | . . . Combat . | . . . Robot Hacks Applied . | . . . Relay Couplers Released . | . . . Fabnet Peak Effective % . | . . . Robots Rewired . | . . . Allies Hacked . | . . . Hacks Repelled . | . . . Allies | -11 -10 -10 -------- Run | Yrd Mat Min Total Allies . | . . . Largest Group . | . . . Highest-Rated Group . | . . . Highest-Rated Ally . | . . . Total Orders . | . . . Ally Attacks . | . . . Total Damage . | . . . Kills . | . . . Allies Corrupted . | . . . Allies Melted . | . . . Intel | -11 -10 -10 ------- Run | Yrd Mat Min Robot Analysis Total . | . . . Derelict Logs Recovered 1 | . . 1 Drone Launches . | . . . Drone Recoveries . | . . . Exploration | -11 -10 -10 ------------- Run | Yrd Mat Min Turns Passed 861 | 74 502 285 Spaces Moved 492 | 69 278 145 Core 1 | 1 . . Treads . | . . . Legs 3 | . 1 2 Wheels 488 | 68 277 143 Hover . | . . . Flight . | . . . Fastest Speed 50 | 50 90 135 Average Speed 119 | 88 117 138 Slowest Speed 400 | 90 190 400 Overloaded Moves . | . . . Propulsion Burnouts . | . . . Robots Hopped . | . . . Cave-ins Triggered . | . . . Exploration Rate (%) 19 | 3 32 24 Regions Visited 2 Branch Regions 1 Pre-discovered Areas 1 | . . 1 Known Exits Taken . | . . . Unknown Exits Taken 2 | 1 1 . Scrap Searched . | . . . Spaces Dug . | . . . Terrain Destroyed . | . . . Melee . | . . . Projectile . | . . . AOE . | . . . Terrain Rammed . | . . . Walls Destroyed . | . . . Machines Disabled . | . . . Actions | -11 -10 -10 --------- Run | Yrd Mat Min Total 699 | 78 427 194 Wait 121 | . 104 17 Move 490 | 68 277 145 Hop . | . . . Pick Up 26 | 4 18 4 Fast Attach 8 | 6 2 . Attach 1 | . 1 . Detach 1 | . 1 . Swap 14 | . 7 7 Drop 6 | . 3 3 Fire 32 | . 14 18 Melee . | . . . Ram . | . . . Kick . | . . . Crush . | . . . Escape Stasis . | . . . Rewire . | . . . Trap . | . . . Miscellaneous . | . . . Route ------- -11/Scrapyard -10/Materials (discovered 2 exits: [*Mat] / [*Min]) -10/Mines History --------- Turn | Location | Event 8 | -11/Scrapyard | Discovered new exit (range 16) 75 | -11/Scrapyard | Entered Materials 197 | -10/Materials | Discovered new exit (range 16) 316 | -10/Materials | Build established: Mutant 388 | -10/Materials | Discovered new exit (range 13) 577 | -10/Materials | Entered Mines 633 | -10/Mines | Learned location of Zion (-6) 821 | -10/Mines | Assembled infested the area 855 | -10/Mines | Core integrity fell below 50% 858 | -10/Mines | Received a Rocket Launcher from a helpful Derelict 861 | -10/Mines | Core integrity fell below 20% 862 | -10/Mines | Destroyed by D-53 Grenadier with Mini Grenade Launcher Last Messages --------------- A derelict emerges from the shadows. TX-9TT(g): "Some of my friends down here think you need a mining laser when you travel the depths." TX-9TT(g): "You know what I say? NO!" C-30 ARC bursts open, deploying its payload. D-53 Grenadier unfolds itself. TX-9TT(g): "Everyone knows a good old rocket launcher goes a long way." TX-9TT(g): "Need to get rid of a swarm? Done. Need a big hole in the wall? Done." Assault Rifle destroyed. TX-9TT(g): "Need a small hole in the wall? Leave that to the mining laser wimps, I say!" Ion Engine destroyed. TX-9TT(g): "Would you like a rocket launcher? I know I would if I were you, so I'm going to lend you mine." TX-9TT(g) slips back into the shadows. Wheel destroyed. Map ----- +----------------------------------------------------+ | ???????????????????????????# #?????????????? | | ???????????????????????????# #?????????????? | | ???????????????????????????## ##?????????????? | | ????????????????????????????# ## #??????????????? | | ????????????????????????????# ## #??????????????? | | ????????????????????????????# #?????????####?? | | ????????????????????????????# ####?????##### #?? | | ??????????????###???????????# #????????# #?? | | ?????????????## ##??????????# #????????# ## #?? | | ??????????#### ###????????# #???###### ### #?? | | ???????#??# ######???# #???# ### #?? | | ???????? ?# ! #???# ##### ####### ##?? | | ????????# # ! ### #???# [#???# ##??? | | ????????# # !! #?# ##### #######???# #???? | | ????????# !! ####?# #?????????# ##???? | | ????????### #????## #### #?????????####????? | | ??????????## ####?????# #### #?????????????????? | | ???????????# #???????## ## ?????????????????? | | ???????????# #??????## r ### ????????????????? | | ???????????# #????### #?? ???????????????? | | ???????????# #???## ##??#???????????????? | | ???????????# #?### ###??????? ????????? | | ???????????# #?# ## # ????????? | | ???????????# ### ] ???????? | | ???????????# d ???????????? | | ???????????# d @ ###????????????????? | | ????# "% ##??????????????????? | | ????####### ## #???????????????????? | | ??????????# ?## ## # ##???????????????????? | | ??????????# ??###### ###????????????????????? | | ??????????# ??????# ##??????????????????????? | | ??????????# ?????# ##???????????????????????? | | ??????????# ?????# ##????????????????????????? | | ??????????#????? u ##??????????????????????????? | | ???????????????### ????????????????????????????? | | ?????????????????# ????????????????????????????? | | ?????????????????# ????????????????????????????? | | ?????????????????##?????????????????????????????? | | ????????????????????????????????????????????????? | | ????????????????????????????????????????????????? | | ????????????????????????????????????????????????? | | ????????????????????????????????????????????????? | | ????????????????????????????????????????????????? | | ????????????????????????????????????????????????? | | ????????????????????????????????????????????????? | | ????????????????????????????????????????????????? | | ????????????????????????????????????????????????? | | ????????????????????????????????????????????????? | | ????????????????????????????????????????????????? | | ????????????????????????????????????????????????? | +----------------------------------------------------+ Best States ------------- Heat Dissipation 25 Energy Generation 10 Energy Capacity 250 Matter Stores 324 Matter Capacity 350 Sight Range 16 Terrain Scan Density 10 Evasion (%) 44 Item Schematics ----------------- None Robot Schematics ------------------ None Fabricated ------------ Nothing Alien Tech Used ----------------- None Achievements -------------- None Challenges ------------ None Game ------ Seed LargeGodCharger Manual? 0 Play Time 00:11:22 Cumulative 5.5 hours Start 2024.11.30 @ 09:16:24 End 2024.11.30 @ 09:45:25 Sessions 1 Manual Loads 0 Difficulty Rogue Special Mode None Game No. 11 Rogue 11 Adventurer 0 Explorer 0 Win Type - Total 0 Types 0/0/0/0/0/0/0/0/0 Lore% 7 Gallery% 9 Achievement% 9 Wizard Run 0 Options --------- Layout 1 ASCII 0 Keyboard 0 Movement Numpad Keybinds 0 Fullscreen 1 Font 32/SmallcapsGlow Map View 50x35 Zoom Use 0% Tactical HUD 0 Map Filters NONE Filters NONE Steam 1 RUN: 86c01e81-31f7-4537-ba7f-96ae3e38f8da